bitfinex/quotes_ETHUSD_20240721
["timestamp","ask_amount","ask_price","bid_price","bid_amount"]
[1721557415371,2.85307,3505.0,3504.8,0.55]
[1721557415719,2.4322,3505.5,3504.8,0.55]
[1721557415720,2.85314,3504.9,3504.8,0.55]
[1721557416459,2.85314,3504.9,3504.6,0.55]
[1721557426083,2.85324,3504.8,3504.6,0.55]
[1721557427969,2.85331,3504.7,3504.6,0.55]
[1721557429775,2.85319,3504.9,3504.6,0.55]
[1721557433571,2.85324,3504.8,3504.6,0.55]
[1721557436912,2.85315,3504.9,3504.6,0.55]
[1721557437207,2.85284,3505.3,3504.7,2.3242]
[1721557437420,2.85284,3505.3,3504.9,2.3242]
[1721557437570,2.85267,3505.5,3504.9,2.3242]
[1721557437571,2.85267,3505.5,3505.0,0.55]
[1721557437776,0.26010859,3505.4,3505.0,0.55]
[1721557438005,2.85274,3505.4,3505.0,0.55]
[1721557438173,0.26011716,3505.3,3505.0,0.55]
[1721557438514,2.85274,3505.4,3505.0,0.55]
[1721557438672,0.26011715,3505.3,3505.0,0.55]
[1721557438986,2.85274,3505.4,3505.0,0.55]
[1721557439188,0.26020489,3505.3,3505.0,0.55]
[1721557439479,2.85274,3505.4,3505.0,0.55]
[1721557439687,0.2602109,3505.3,3505.0,0.55]
[1721557439900,2.85282,3505.3,3505.0,0.55]
[1721557440590,2.85298,3505.1,3505.0,0.55]
[1721557440789,2.85298,3505.1,3504.8,0.55]
[1721557440983,2.85308,3505.0,3504.8,0.55]
[1721557441513,2.85308,3505.0,3504.5,9.7442]
[1721557441715,2.85327,3504.8,3504.5,2.3242]
[1721557442386,2.85327,3504.8,3504.5,2.55662]
[1721557443090,2.85327,3504.8,3504.6,0.55]
[1721557443273,2.85308,3505.0,3504.6,0.55]
[1721557447580,2.85296,3505.2,3504.6,0.55]
[1721557447785,0.26016736,3505.1,3504.6,1.146007]
[1721557448122,2.85296,3505.2,3504.6,1.146007]
[1721557448305,0.26016281,3505.1,3504.6,1.146007]
[1721557448603,0.26016281,3505.0,3504.6,1.146007]
[1721557448911,2.85296,3505.2,3504.6,1.146007]
[1721557449074,0.26016274,3505.1,3504.6,1.146007]
[1721557449275,0.26016274,3505.0,3504.6,1.146007]
[1721557449476,2.85296,3505.2,3504.6,1.146007]
[1721557449672,0.26018277,3505.1,3504.6,1.146007]
[1721557449914,0.26018277,3505.0,3504.6,1.146007]
[1721557450120,2.85296,3505.2,3504.6,1.146007]
[1721557450282,0.2601826,3505.1,3504.6,1.146007]
[1721557450482,0.2601826,3505.0,3504.6,1.146007]
[1721557450820,2.85296,3505.2,3504.6,1.146007]
[1721557451006,0.2601828,3505.1,3504.6,1.146007]
[1721557451210,0.2601828,3505.0,3504.6,1.146007]
[1721557451505,2.85298,3505.1,3504.6,1.146007]
[1721557451702,0.26017786,3505.0,3504.6,1.146007]
[1721557452018,0.26018168,3504.9,3504.6,0.55]
[1721557452313,2.85307,3505.0,3504.6,0.55]
[1721557452518,0.26016946,3504.9,3504.6,0.55]
[1721557452819,2.85307,3505.0,3504.6,0.55]
[1721557453024,0.26017519,3504.9,3504.6,0.55]
[1721557453185,3.11340519,3504.8,3504.6,0.55]
[1721557453383,2.85323,3504.8,3504.6,0.55]
[1721557454788,2.85331,3504.7,3504.6,0.55]
[1721557454983,2.85344,3504.6,3504.4,0.55]
[1721557459204,2.85325,3504.8,3504.4,0.55]
[1721557459397,0.26015766,3504.7,3504.4,0.55]
[1721557459594,2.85325,3504.8,3504.4,0.55]
[1721557459934,0.26014837,3504.7,3504.4,0.55]
[1721557460233,2.85325,3504.8,3504.4,0.55]
[1721557462567,2.85331,3504.7,3504.5,2.3667]
[1721557462762,2.85331,3504.7,3504.6,0.55]
[1721557472180,2.85315,3504.9,3504.6,0.55]
[1721557472791,2.85324,3504.8,3504.6,0.55]
[1721557474987,2.85331,3504.7,3504.6,0.55]
[1721557477030,2.8534,3504.6,3504.4,0.55]
[1721557482301,2.85347,3504.5,3504.4,0.55]
[1721557486109,2.85336,3504.7,3504.4,0.55]
[1721557486267,2.85336,3504.7,3504.4,1.57298]
[1721557487395,2.85336,3504.7,3504.4,0.55]
[1721557493295,2.85323,3504.8,3504.4,0.55]
[1721557493296,2.85341,3504.6,3504.4,0.55]
[1721557493805,2.85341,3504.6,3504.2,0.55]
[1721557494188,2.85349,3504.5,3504.2,0.55]
[1721557498595,2.85349,3504.5,3504.1,0.55]
[1721557498798,2.85364,3504.3,3504.1,0.55]
[1721557500312,2.85349,3504.5,3504.1,0.55]
[1721557501310,2.85355,3504.4,3504.1,0.55]
[1721557506450,2.85344,3504.6,3504.1,0.55]
[1721557511270,2.85347,3504.5,3504.1,0.55]
[1721557516945,2.85331,3504.7,3504.1,0.55]
[1721557517173,0.26017853,3504.6,3504.1,0.55]
[1721557517373,2.85331,3504.7,3504.1,0.55]
[1721557517584,3.11362849,3504.6,3504.1,0.55]
[1721557517787,2.85345,3504.6,3504.1,0.55]
[1721557519151,2.85331,3504.7,3504.1,0.55]
[1721557519478,3.11359686,3504.6,3504.1,0.55]
[1721557519810,2.85343,3504.6,3504.1,0.55]
[1721557528095,0.26128071,3504.5,3504.1,0.55]
[1721557528281,2.85343,3504.6,3504.1,0.55]
[1721557528454,3.11478131,3504.5,3504.1,0.55]
[1721557528659,2.8535,3504.5,3504.1,0.55]
[1721557533425,2.85313,3505.0,3504.3,2.85357]
[1721557533610,3.26119524,3504.9,3504.5,2.2766]
[1721557533814,0.26119524,3504.8,3504.7,2.2766]
[1721557534170,3.15128149,3505.2,3504.7,2.8266]
[1721557534374,0.26104795,3505.1,3504.8,0.55]
[1721557534578,0.26104795,3505.0,3504.8,0.55]
[1721557534787,0.26104795,3504.9,3504.8,0.55]
[1721557536378,3.15128149,3505.2,3504.8,0.55]
[1721557536603,0.26115515,3505.1,3504.8,0.55]
[1721557536911,0.26115515,3505.0,3504.8,0.55]
[1721557537073,3.15128149,3505.2,3504.8,0.55]
[1721557537305,0.26120667,3505.1,3504.8,0.55]
[1721557537520,0.26120667,3505.0,3504.8,0.55]
[1721557537704,3.15128149,3505.2,3504.8,0.55]
[1721557537930,0.26120671,3505.1,3504.8,0.55]
[1721557538130,0.26120671,3505.0,3504.8,0.55]
[1721557538302,3.15128149,3505.2,3504.8,0.55]
[1721557538502,0.26119688,3505.1,3504.8,0.55]
[1721557538837,0.26119688,3505.0,3504.8,0.55]
[1721557539003,3.15128149,3505.2,3504.8,0.55]
[1721557539197,0.2612041,3505.1,3504.8,0.55]
[1721557539500,0.2612041,3505.0,3504.8,0.55]
[1721557539700,3.15128149,3505.2,3504.8,0.55]
[1721557539899,0.26120416,3505.1,3504.8,0.55]
[1721557540136,0.26120416,3505.0,3504.8,0.55]
[1721557540320,2.85299,3505.1,3504.8,0.55]
[1721557540520,0.26121056,3505.0,3504.8,0.55]
[1721557540725,2.85299,3505.1,3504.8,0.55]
[1721557540924,0.26121098,3505.0,3504.8,0.55]
[1721557541124,2.85299,3505.1,3504.8,0.55]
[1721557541442,0.26119927,3505.0,3504.8,0.55]
[1721557541641,2.85299,3505.1,3504.8,0.55]
[1721557541842,0.26119942,3505.0,3504.8,0.55]
[1721557542017,2.85299,3505.1,3504.8,0.55]
[1721557555232,2.85308,3505.0,3504.8,0.55]
[1721557567983,3.45350515,3505.0,3504.8,0.55]
[1721557568189,3.45350515,3505.0,3504.9,0.55]
[1721557568516,2.85316,3504.9,3504.6,0.55]
[1721557568745,2.85323,3504.8,3504.5,19.48]
[1721557569940,2.85323,3504.8,3504.2,2.2723]
[1721557569941,2.85323,3504.8,3504.2,21.7523]
[1721557570142,2.85323,3504.8,3504.3,0.55]
[1721557570303,2.85339,3504.6,3504.3,0.55]
[1721557570735,2.85323,3504.8,3504.4,2.2723]
[1721557570939,2.85323,3504.8,3504.5,0.55]
[1721557571146,2.85323,3504.8,3504.6,2.2723]
[1721557571447,2.85323,3504.8,3504.7,0.55]
[1721557572209,2.85306,3505.0,3504.7,0.55]
[1721557572413,2.85306,3505.0,3504.4,2.8223]
[1721557572645,2.85306,3505.0,3504.6,2.3534]
[1721557572820,2.85306,3505.0,3504.7,0.55]
[1721557576266,0.2612,3504.9,3504.7,0.55]
[1721557576468,2.85306,3505.0,3504.7,0.55]
[1721557576668,0.2612,3504.9,3504.7,0.55]
[1721557576873,2.85306,3505.0,3504.7,0.55]
[1721557577060,0.26120042,3504.9,3504.7,0.55]
[1721557577366,2.85306,3505.0,3504.7,0.55]
[1721557577571,0.26120047,3504.9,3504.7,0.55]
[1721557577870,2.85306,3505.0,3504.7,0.55]
[1721557578170,0.26120046,3504.9,3504.7,0.55]
[1721557578374,2.85306,3505.0,3504.7,0.55]
[1721557578579,0.26120029,3504.9,3504.7,0.55]
[1721557578786,2.85306,3505.0,3504.7,0.55]
[1721557579095,0.26120026,3504.9,3504.7,0.55]
[1721557579256,2.85306,3505.0,3504.7,0.55]
[1721557579463,0.2611999,3504.9,3504.7,0.55]
[1721557579771,2.85306,3505.0,3504.7,0.55]
[1721557579968,0.26119985,3504.9,3504.7,0.55]
[1721557580285,2.85306,3505.0,3504.7,0.55]
[1721557580487,0.26119993,3504.9,3504.7,0.55]
[1721557580786,2.85306,3505.0,3504.7,0.55]
[1721557580971,0.2612,3504.9,3504.7,0.55]
[1721557581144,0.2612,3504.8,3504.7,0.55]
[1721557581349,0.2612,3504.9,3504.7,0.55]
[1721557581549,0.2612,3504.8,3504.7,0.55]
[1721557581750,0.2612,3504.9,3504.7,0.55]
[1721557582150,0.29835149,3505.2,3504.8,2.2526]
[1721557582400,0.26117553,3505.1,3504.9,0.55]
[1721557582589,0.26117553,3505.0,3504.9,0.55]
[1721557587323,0.29835149,3505.2,3504.9,0.55]
[1721557587622,0.26111857,3505.1,3504.9,0.55]
[1721557587812,0.29835149,3505.2,3504.9,0.55]
[1721557588011,0.26111681,3505.1,3504.9,0.55]
[1721557588217,0.29835149,3505.2,3504.9,0.55]
[1721557588524,0.2611326,3505.1,3504.9,0.55]
[1721557588826,0.29835149,3505.2,3504.9,0.55]
[1721557589035,0.26113021,3505.1,3504.9,0.55]
[1721557589186,0.29835149,3505.2,3504.9,0.55]
[1721557589525,0.26113648,3505.1,3504.9,0.55]
[1721557589738,0.29835149,3505.2,3504.9,0.55]
[1721557589890,0.26113633,3505.1,3504.9,0.55]
[1721557590090,0.29835149,3505.2,3504.9,0.55]
[1721557590427,0.26113667,3505.1,3504.9,0.55]
[1721557590642,0.29835149,3505.2,3504.9,0.55]
[1721557590941,0.26113684,3505.1,3504.9,0.55]
[1721557591119,0.29835149,3505.2,3505.0,2.2526]
[1721557591436,2.85258,3505.6,3505.1,0.55]
[1721557591728,0.26117424,3505.5,3505.1,0.55]
[1721557591933,0.26117424,3505.4,3505.1,0.55]
[1721557592292,0.26117424,3505.3,3505.1,0.55]
[1721557592512,2.85258,3505.6,3505.1,0.55]
[1721557592719,0.26120472,3505.5,3505.1,0.55]
[1721557592923,0.26120472,3505.4,3505.1,0.55]
[1721557593115,0.26120472,3505.3,3505.1,0.55]
[1721557593327,2.85258,3505.6,3505.1,0.55]
[1721557593527,0.26122919,3505.5,3505.1,0.55]
[1721557593832,0.26122919,3505.4,3505.1,0.55]
[1721557594029,2.85258,3505.6,3505.1,0.55]
[1721557594203,0.26123242,3505.5,3505.1,0.55]
[1721557594393,0.26123242,3505.4,3505.1,0.55]
[1721557594589,2.85258,3505.6,3505.1,0.55]
[1721557594848,0.26123308,3505.5,3505.1,0.55]
[1721557595004,0.26123308,3505.4,3505.1,0.55]
[1721557595211,2.85258,3505.6,3505.1,0.55]
[1721557595528,0.26123305,3505.5,3505.1,0.55]
[1721557595692,2.85258,3505.6,3505.1,0.55]
[1721557595693,0.26123305,3505.4,3505.1,0.55]
[1721557595893,2.85258,3505.6,3505.1,0.55]
[1721557596089,0.26123307,3505.5,3505.1,0.55]
[1721557596329,0.26123307,3505.4,3505.1,0.55]
[1721557596629,2.85258,3505.6,3505.1,0.55]
[1721557596831,0.86157448,3505.5,3505.1,0.55]
[1721557597037,0.26123459,3505.4,3505.1,0.55]
[1721557597396,3.11399459,3505.4,3505.1,0.55]
[1721557597596,0.26123459,3505.3,3504.9,0.55]
[1721557602418,2.85258,3505.6,3504.9,0.55]
[1721557602652,0.26123717,3505.5,3504.9,0.55]
[1721557602831,0.26123717,3505.4,3504.9,0.55]
[1721557603013,5.56762889,3505.8,3504.9,0.55]
[1721557603014,0.26123717,3505.3,3504.9,0.55]
[1721557603219,2.85267,3505.5,3504.9,0.55]
[1721557603417,0.2612328,3505.4,3504.9,0.55]
[1721557603650,0.2612328,3505.3,3504.9,0.55]
[1721557603857,2.85267,3505.5,3504.9,0.55]
[1721557604060,0.26123279,3505.4,3504.9,0.55]
[1721557604247,0.26123279,3505.3,3504.9,0.55]
[1721557604564,2.85267,3505.5,3504.9,0.55]
[1721557604786,0.26124032,3505.4,3504.9,0.55]
[1721557605056,0.26124032,3505.3,3504.9,0.55]
[1721557605219,2.85267,3505.5,3504.9,0.55]
[1721557605420,0.26124261,3505.4,3504.9,0.55]
[1721557605620,2.85267,3505.5,3504.9,0.55]
[1721557605621,0.26124261,3505.3,3504.9,0.55]
[1721557605954,2.85267,3505.5,3504.9,0.55]
[1721557606264,0.26124554,3505.4,3504.9,0.55]
[1721557606442,0.26124554,3505.3,3504.9,0.55]
[1721557606642,2.85267,3505.5,3504.9,0.55]
[1721557606854,3.11398816,3505.4,3504.9,0.55]
[1721557607051,0.26124816,3505.3,3504.9,0.55]
[1721557607663,3.11410816,3505.3,3504.9,0.55]
[1721557607867,2.85286,3505.3,3504.9,0.55]
[1721557608362,0.26124208,3505.2,3504.9,0.55]
[1721557608571,2.85286,3505.3,3504.9,0.55]
[1721557608884,0.26124484,3505.2,3504.9,0.55]
[1721557609163,2.85286,3505.3,3504.9,0.55]
[1721557609364,0.26124479,3505.2,3504.9,0.55]
[1721557609567,2.85286,3505.3,3504.9,0.55]
[1721557609744,0.2612155,3505.2,3504.9,0.55]
[1721557609945,2.85286,3505.3,3504.9,0.55]
[1721557610144,0.26121225,3505.2,3504.9,0.55]
[1721557610344,2.85286,3505.3,3504.9,0.55]
[1721557610545,0.26120991,3505.2,3504.9,0.55]
[1721557610845,2.85286,3505.3,3504.9,0.55]
[1721557611465,0.2612132,3505.2,3504.9,0.55]
[1721557611675,2.85286,3505.3,3504.9,0.55]
[1721557611871,0.26122398,3505.2,3504.9,0.55]
[1721557612174,2.85286,3505.3,3504.9,0.55]
[1721557612375,0.26122398,3505.2,3504.9,0.55]
[1721557612668,2.85286,3505.3,3504.9,0.55]
[1721557612831,0.2612226,3505.2,3504.9,0.55]
[1721557613031,2.85286,3505.3,3504.9,0.55]
[1721557613336,0.2612231,3505.2,3504.9,0.55]
[1721557613536,2.85286,3505.3,3504.9,0.55]
[1721557613738,0.26121388,3505.2,3504.9,0.55]
[1721557613965,2.85286,3505.3,3504.9,0.55]
[1721557614146,0.26121385,3505.2,3504.9,0.55]
[1721557614346,2.85286,3505.3,3504.9,0.55]
[1721557614558,0.26121557,3505.2,3504.9,0.55]
[1721557614759,2.85286,3505.3,3504.9,0.55]
[1721557614963,0.26121568,3505.2,3504.9,0.55]
[1721557615269,2.85286,3505.3,3504.9,0.55]
[1721557615477,0.2612131,3505.2,3504.9,0.55]
[1721557615645,2.85286,3505.3,3504.9,0.55]
[1721557615850,0.2612131,3505.2,3504.9,0.55]
[1721557616170,2.85286,3505.3,3504.9,0.55]
[1721557616386,3.11412801,3505.2,3504.9,0.55]
[1721557616558,0.26121801,3505.1,3504.9,0.55]
[1721557618179,3.11420801,3505.1,3504.9,0.55]
[1721557618388,2.85306,3505.0,3504.9,0.55]
[1721557618894,2.85306,3505.0,3504.7,0.55]
[1721557621698,2.85315,3504.9,3504.7,0.55]
[1721557623652,2.85315,3504.9,3504.6,0.55]
[1721557623883,2.85331,3504.7,3504.6,0.55]
[1721557624081,2.85331,3504.7,3504.6,2.9268]
[1721557628063,2.85331,3504.7,3504.6,0.55]
[1721557629474,2.85331,3504.7,3504.5,0.55]
[1721557632733,5.45922827,3505.3,3504.5,0.55]
[1721557632734,2.85319,3504.9,3504.5,0.55]
[1721557632935,2.85319,3504.9,3504.6,2.4713]
[1721557633134,2.85319,3504.9,3504.7,0.55]
[1721557633657,0.29840827,3505.3,3504.7,0.55]
[1721557633818,2.85322,3504.8,3504.7,0.55]
[1721557634907,2.85322,3504.8,3504.5,0.55]
[1721557643625,2.85322,3504.8,3504.6,0.55]
[1721557643852,2.85322,3504.8,3504.4,2.16716932]
[1721557645681,2.85322,3504.8,3504.5,0.55]
[1721557647889,5.13246,3505.0,3504.5,0.55]
[1721557648200,0.513246,3504.9,3504.2,0.55]
[1721557648344,2.85327,3504.8,3504.2,0.55]
[1721557653195,2.85331,3504.7,3504.2,0.55]
[1721557653960,2.85347,3504.5,3504.2,0.55]
[1721557654376,2.85347,3504.5,3503.8,0.59389875]
[1721557654377,2.85362,3504.4,3503.9,2.2849]
[1721557656093,2.85362,3504.4,3504.0,0.55]
[1721557656294,2.85364,3504.3,3504.0,0.55]
[1721557658680,2.85364,3504.3,3503.8,0.55]
[1721557658901,0.3424318,3504.2,3503.8,0.55]
[1721557659281,2.85379,3504.1,3503.8,0.55]
[1721557668298,2.85388,3504.0,3503.8,0.55]
[1721557671409,2.85396,3503.9,3503.8,0.55]
[1721557671609,5.70792,3503.9,3503.8,0.55]
[1721557671910,2.85428,3503.5,3503.4,2.4346]
[1721557672101,2.85428,3503.5,3503.4,2.9846]
[1721557678253,2.85428,3503.5,3503.4,0.55]
[1721557678427,2.85428,3503.5,3503.3,0.55]
[1721557678609,2.85413,3503.7,3503.3,0.55]
[1721557680715,2.85421,3503.6,3503.3,0.55]
[1721557681858,2.85408,3503.8,3503.3,0.55]
[1721557682687,2.85398,3503.9,3503.3,0.55]
[1721557682688,2.8542,3503.6,3503.3,0.55]
[1721557683063,2.85408,3503.8,3503.3,0.55]
[1721557684476,2.85414,3503.7,3503.3,0.55]
[1721557690265,2.85398,3503.9,3503.3,0.55]
[1721557690694,2.85398,3503.9,3503.4,2.396]
[1721557690879,2.85398,3503.9,3503.5,0.55]
[1721557694589,2.85404,3503.8,3503.5,0.55]
[1721557696710,3.424862,3503.8,3503.3,19.48]
[1721557696915,2.85428,3503.6,3503.4,0.55]
[1721557701022,2.85428,3503.6,3503.2,0.55]
[1721557710051,2.8543,3503.5,3503.2,0.55]
[1721557710843,2.85413,3503.7,3503.2,0.55]
[1721557711963,2.85424,3503.6,3503.2,0.55]
[1721557717669,3.425061,3503.6,3503.2,0.55]
[1721557717828,2.8543,3503.5,3503.2,0.55]
[1721557718028,2.8543,3503.5,3503.0,0.55]
[1721557719465,2.85438,3503.4,3503.0,0.55]
[1721557719967,2.85438,3503.4,3502.9,0.55]
[1721557720675,2.85445,3503.3,3502.9,0.55]
[1721557721631,2.85455,3503.2,3502.8,0.55]
[1721557723074,2.85437,3503.4,3502.8,0.55]
[1721557723582,2.85445,3503.3,3502.8,0.55]
[1721557724574,2.85453,3503.2,3502.8,0.55]
[1721557725456,2.3111,3503.1,3502.8,0.55]
[1721557726065,2.85477,3502.9,3502.8,0.55]
[1721557727640,2.85486,3502.8,3502.6,0.55]
[1721557728658,2.85494,3502.7,3502.6,0.55]
[1721557729078,2.85502,3502.6,3502.4,0.55]
[1721557738059,2.8551,3502.5,3502.2,0.55]
[1721557738670,2.85519,3502.4,3502.2,0.55]
[1721557739571,2.85519,3502.4,3502.1,0.55]
[1721557740789,2.85526,3502.3,3502.1,0.55]
[1721557741584,2.85534,3502.2,3502.1,0.55]
[1721557742145,2.4103,3502.2,3501.2,26.9]
[1721557742350,2.4103,3502.2,3501.2,7.42]
[1721557742351,5.71216,3501.3,3501.2,7.42]
[1721557742584,2.85608,3501.3,3500.9,0.1505952]
[1721557742790,2.85614,3501.3,3500.9,0.1505952]
[1721557744087,2.85592,3501.5,3500.9,0.1505952]
[1721557744088,5.71191,3501.5,3500.9,0.1505952]
[1721557744290,2.85602,3501.4,3500.9,0.1505952]
[1721557744884,2.85602,3501.4,3501.0,0.55]
[1721557748669,2.85544,3502.1,3501.1,2.408]
[1721557748997,2.85554,3502.0,3501.4,2.408]
[1721557749851,2.85538,3502.2,3501.5,2.85591]
[1721557750094,2.85522,3502.4,3501.6,3.40582]
[1721557750403,3.0,3502.3,3501.6,3.40582]
[1721557750592,2.85522,3502.4,3501.7,2.408]
[1721557750753,2.85522,3502.4,3501.8,0.55]
[1721557751572,2.85528,3502.3,3501.8,0.55]
[1721557751792,2.85536,3502.2,3501.8,0.55]
[1721557761066,2.85549,3502.1,3501.8,0.55]
[1721557763331,2.85527,3502.3,3501.8,0.55]
[1721557763662,2.85535,3502.2,3501.8,0.55]
[1721557770288,2.85528,3502.3,3501.8,0.55]
[1721557770457,2.85528,3502.3,3501.9,2.3209]
[1721557776193,3.450415,3502.3,3501.9,2.3209]
[1721557780687,0.595135,3502.3,3501.6,2.465]
[1721557780892,0.24103,3502.6,3501.8,2.465]
[1721557780893,2.85524,3502.4,3501.8,2.465]
[1721557782851,2.85515,3502.5,3501.8,5.32066]
[1721557783006,2.85515,3502.5,3501.9,0.55]
[1721557784216,2.85519,3502.4,3501.9,0.55]
[1721557787769,0.609597,3502.5,3502.0,2.465]
[1721557787931,3.609597,3502.5,3502.0,2.465]
[1721557788777,3.15327303,3502.9,3502.0,2.465]
[1721557788948,3.0,3502.8,3502.2,2.465]
[1721557789964,0.29846303,3502.9,3502.5,2.85509]
[1721557791250,0.29846303,3502.9,3502.6,5.32002]
[1721557791451,0.29846303,3502.9,3502.7,0.55]
[1721557791682,5.85446,3503.3,3502.7,0.55]
[1721557791858,3.966796,3503.2,3502.7,0.55]
[1721557795418,2.85454,3503.2,3502.7,0.55]
[1721557795620,3.0,3503.3,3502.7,0.55]
[1721557795788,5.85446,3503.3,3502.7,0.55]
[1721557796619,5.85446,3503.3,3502.8,2.4213]
[1721557800005,3.0,3503.3,3502.8,2.4213]
[1721557800205,5.85438,3503.4,3502.9,0.55]
[1721557800698,2.85446,3503.3,3502.9,0.55]
[1721557806168,2.85455,3503.2,3502.9,0.55]
[1721557806326,3.75518125,3503.3,3502.8,2.4213]
[1721557806658,2.85464,3503.1,3502.8,2.4213]
[1721557806861,3.75518125,3503.3,3502.8,2.4213]
[1721557808058,2.85454,3503.2,3502.8,2.4213]
[1721557808279,2.85446,3503.3,3502.8,2.4213]
[1721557808482,2.85446,3503.3,3502.9,0.55]
[1721557813293,2.85458,3503.2,3502.9,0.55]
[1721557816103,2.85462,3503.1,3502.9,0.55]
[1721557816471,2.85469,3503.0,3502.5,21.8904]
[1721557817291,2.85478,3502.9,3502.5,21.8904]
[1721557819691,2.85478,3502.9,3502.5,2.4104]
[1721557831387,2.85451,3503.3,3502.6,2.4104]
[1721557831590,2.85451,3503.3,3502.7,2.9604]
[1721557831803,2.85453,3503.2,3502.7,2.9604]
[1721557833372,5.85443,3503.4,3502.7,5.8153]
[1721557838536,2.85446,3503.3,3502.7,5.8153]
[1721557839193,2.85454,3503.2,3502.7,2.9604]
[1721557839943,2.85461,3503.1,3502.7,2.9604]
[1721557842108,2.85471,3503.0,3502.7,2.9604]
[1721557843210,2.85479,3502.9,3502.7,0.55]
[1721557843542,2.85479,3502.9,3502.5,0.55]
[1721557845416,2.85502,3502.7,3502.5,0.55]
[1721557849145,2.85502,3502.6,3502.4,2.3363]
[1721557849349,2.85531,3502.3,3502.1,19.48]
[1721557849564,2.85534,3502.2,3502.1,19.48]
[1721557852337,2.85534,3502.2,3502.0,2.3363]
[1721557855264,2.85542,3502.1,3501.6,7.42]
[1721557855426,2.85553,3502.0,3501.7,2.8296]
[1721557857133,2.85563,3501.9,3501.7,2.8296]
[1721557858454,2.85563,3501.9,3501.7,0.55]
[1721557858643,2.85563,3501.9,3501.6,0.55]
[1721557862776,2.85536,3502.2,3501.6,0.55]
[1721557862777,2.85551,3502.0,3501.7,2.4061]
[1721557873697,2.85536,3502.2,3501.7,2.4061]
[1721557873989,2.85536,3502.2,3501.7,2.987308]
[1721557874196,2.85536,3502.2,3501.8,0.55]
[1721557874689,2.85519,3502.4,3501.9,2.4411]
[1721557875919,2.85527,3502.3,3501.9,2.4411]
[1721557878067,2.8551,3502.5,3501.9,2.4411]
[1721557878268,2.85518,3502.4,3501.9,3.025784]
[1721557878523,2.85518,3502.4,3501.9,2.4411]
[1721557878811,2.85518,3502.4,3502.0,0.55]
[1721557882708,2.85542,3502.1,3502.0,0.55]
[1721557882916,3.140962,3502.1,3501.9,2.4411]
[1721557883076,2.85542,3502.1,3501.9,2.4411]
[1721557884869,2.85542,3502.1,3501.5,2.2927]
[1721557885070,2.85542,3502.1,3501.6,0.55]
[1721557890407,2.2619,3502.5,3501.6,0.55]
[1721557890617,2.8556,3501.9,3501.6,0.55]
[1721557892233,2.8556,3501.9,3501.3,0.55]
[1721557892434,2.8556,3501.9,3501.4,0.99293313]
[1721557892642,2.8556,3501.9,3501.2,10.30659875]
[1721557892643,2.8556,3501.9,3501.5,0.55]
[1721557893156,2.8556,3501.9,3501.3,0.55]
[1721557893450,2.8556,3501.9,3501.4,0.99297148]
[1721557893647,2.8556,3501.9,3501.5,0.55]
[1721557894010,2.8556,3501.9,3501.3,0.55]
[1721557894212,2.8556,3501.9,3501.4,0.99296911]
[1721557894453,2.8556,3501.9,3501.5,0.55]
[1721557894799,2.8556,3501.9,3501.3,3.46736562]
[1721557895099,2.85573,3501.8,3501.4,0.9929593]
[1721557895268,2.85573,3501.8,3501.5,1.54293876]
[1721557895465,2.85573,3501.8,3501.5,0.55]
[1721557895867,2.85554,3502.0,3501.5,0.55]
[1721557897391,2.85559,3501.9,3501.5,0.55]
[1721557898092,2.85589,3501.6,3501.3,0.55]
[1721557898592,2.85577,3501.7,3501.3,0.55]
[1721557903208,2.85585,3501.6,3501.3,0.55]
[1721557903411,2.85592,3501.5,3501.3,0.55]
[1721557904687,2.85592,3501.5,3501.2,0.55]
[1721557905784,2.85577,3501.7,3501.3,2.3962]
[1721557905964,2.85585,3501.6,3501.3,2.3962]
[1721557906366,2.85592,3501.5,3501.3,2.3962]
[1721557906903,2.85592,3501.5,3501.2,0.55]
[1721557909854,2.85601,3501.4,3501.2,0.55]
[1721557911023,2.85608,3501.3,3501.1,2.3962]
[1721557911219,2.85608,3501.3,3500.9,0.1505952]
[1721557911534,2.85592,3501.5,3501.0,0.55]
[1721557911535,2.85616,3501.2,3501.0,0.55]
[1721557911940,2.85616,3501.2,3500.9,0.1505952]
[1721557912420,2.85612,3501.3,3500.9,0.1505952]
[1721557913361,2.85624,3501.1,3500.9,0.1505952]
[1721557913602,2.85612,3501.3,3500.9,0.1505952]
[1721557913926,2.85593,3501.5,3501.0,2.4148]
[1721557914255,2.85593,3501.5,3501.2,2.4148]
[1721557918100,2.85576,3501.7,3501.3,0.55]
[1721557919459,2.85584,3501.6,3501.3,0.55]
[1721557920652,2.4787,3502.1,3501.3,0.55]
[1721557920653,2.85577,3501.7,3501.3,0.55]
[1721557926410,2.85586,3501.6,3501.3,0.55]
[1721557928024,2.85592,3501.5,3501.3,0.55]
[1721557928181,2.85592,3501.5,3501.1,0.55]
[1721557928934,2.85568,3501.8,3501.1,0.55]
[1721557929226,2.85584,3501.6,3501.1,0.55]
[1721557929920,2.85576,3501.7,3501.2,2.4148]